fUST/lending_fUST_20260526
["ID","MTS","AMOUNT","RATE_DAILY","PERIOD"]
[422998382,1779732640000,-302.428149,8.493e-05,2]
[422998387,1779732640000,-302.428149,8.493e-05,2]
[422998469,1779732641000,-500.0,8.493e-05,2]
[422998463,1779732641000,-1158.58,8.493e-05,2]
[422998476,1779732641000,-500.0,8.493e-05,2]
[422998477,1779732641000,-629.63,8.493e-05,2]
[422998470,1779732641000,-500.0,8.493e-05,2]
[422998472,1779732641000,-500.0,8.493e-05,2]
[422998465,1779732641000,-500.0,8.493e-05,2]
[422998478,1779732641000,-500.0,8.493e-05,2]
[422998473,1779732641000,-558.55,8.493e-05,2]
[422998475,1779732641000,-447.33456967,8.493e-05,2]
[422998462,1779732641000,-500.0,8.493e-05,2]
[422998467,1779732641000,-500.0,8.493e-05,2]
[422998488,1779732641000,-1639.56,8.493e-05,2]
[422998479,1779732641000,-500.0,8.493e-05,2]
[422998481,1779732641000,-500.0,8.493e-05,2]
[422998490,1779732641000,-500.0,8.493e-05,2]
[422998480,1779732641000,-1109.87,8.493e-05,2]
[422998486,1779732641000,-500.0,8.493e-05,2]
[422998484,1779732641000,-1248.63,8.493e-05,2]
[422998492,1779732641000,-1976.72,8.493e-05,2]
[422998491,1779732641000,-1371.68,8.493e-05,2]
[422998485,1779732641000,-500.0,8.493e-05,2]
[422998487,1779732641000,-321.06859929,8.493e-05,2]
[422998489,1779732641000,-500.0,8.493e-05,2]
[422998483,1779732641000,-500.0,8.493e-05,2]
[422998461,1779732641000,-1020.96,8.493e-05,2]
[422998494,1779732641000,-500.0,8.493e-05,2]
[422998482,1779732641000,-795.51,8.493e-05,2]
[422998454,1779732641000,-500.0,8.493e-05,2]
[422998440,1779732641000,-500.0,8.493e-05,2]
[422998452,1779732641000,-500.0,8.493e-05,2]
[422998493,1779732641000,-864.6,8.493e-05,2]
[422998432,1779732641000,-461.600859,8.493e-05,2]
[422998430,1779732641000,-461.600859,8.493e-05,2]
[422998429,1779732641000,-461.600859,8.493e-05,2]
[422998436,1779732641000,-876.79,8.493e-05,2]
[422998442,1779732641000,-500.0,8.493e-05,2]
[422998444,1779732641000,-500.0,8.493e-05,2]
[422998435,1779732641000,-163.0442,8.493e-05,2]
[422998438,1779732641000,-500.0,8.493e-05,2]
[422998433,1779732641000,-461.600859,8.493e-05,2]
[422998437,1779732641000,-1563.38,8.493e-05,2]
[422998434,1779732641000,-54947.9668866,8.493e-05,2]
[422998446,1779732641000,-787.94157257,8.493e-05,2]
[422998453,1779732641000,-500.0,8.493e-05,2]
[422998445,1779732641000,-500.0,8.493e-05,2]
[422998443,1779732641000,-500.0,8.493e-05,2]
[422998441,1779732641000,-756.52,8.493e-05,2]
[422998447,1779732641000,-3148.61452401,8.493e-05,2]
[422998448,1779732641000,-500.0,8.493e-05,2]
[422998458,1779732641000,-500.0,8.493e-05,2]
[422998460,1779732641000,-500.0,8.493e-05,2]
[422998449,1779732641000,-607.34,8.493e-05,2]
[422998459,1779732641000,-2906.56839414,8.493e-05,2]
[422998450,1779732641000,-500.0,8.493e-05,2]
[422998457,1779732641000,-726.64209854,8.493e-05,2]
[422998455,1779732641000,-500.0,8.493e-05,2]
[422998456,1779732641000,-500.0,8.493e-05,2]
[422998451,1779732641000,-500.0,8.493e-05,2]
[422998439,1779732641000,-500.0,8.493e-05,2]
[422998495,1779732641000,-500.0,8.493e-05,2]
[422998431,1779732641000,-461.600859,8.493e-05,2]
[422998504,1779732641000,-500.0,8.493e-05,2]
[422998535,1779732641000,-520.01,8.493e-05,2]
[422998533,1779732641000,-500.0,8.493e-05,2]
[422998530,1779732641000,-552.66,8.493e-05,2]
[422998531,1779732641000,-526.15,8.493e-05,2]
[422998528,1779732641000,-836.7,8.493e-05,2]
[422998536,1779732641000,-500.0,8.493e-05,2]
[422998529,1779732641000,-500.0,8.493e-05,2]
[422998534,1779732641000,-500.0,8.493e-05,2]
[422998539,1779732641000,-476.3340373,8.493e-05,2]
[422998547,1779732641000,-171.3526438,8.493e-05,2]
[422998548,1779732641000,-522.23875848,8.493e-05,2]
[422998538,1779732641000,-500.7034496,8.493e-05,2]
[422998549,1779732641000,-500.0,8.493e-05,2]
[422998532,1779732641000,-2112.19,8.493e-05,2]
[422998540,1779732641000,-167.0,8.493e-05,2]
[422998546,1779732641000,-167.0,8.493e-05,2]
[422998544,1779732641000,-167.0,8.493e-05,2]
[422998541,1779732641000,-167.0,8.493e-05,2]
[422998545,1779732641000,-167.0,8.493e-05,2]
[422998543,1779732641000,-167.0,8.493e-05,2]
[422998550,1779732641000,-500.0,8.493e-05,2]
[422998552,1779732641000,-500.0,8.493e-05,2]
[422998553,1779732641000,-163.35067359,8.493e-05,2]
[422998556,1779732641000,-500.0,8.493e-05,2]
[422998554,1779732641000,-500.0,8.493e-05,2]
[422998555,1779732641000,-654.08,8.493e-05,2]
[422998557,1779732641000,-2463.54,8.493e-05,2]
[422998551,1779732641000,-500.0,8.493e-05,2]
[422998542,1779732641000,-167.0,8.493e-05,2]
[422998526,1779732641000,-1143.99,8.493e-05,2]
[422998498,1779732641000,-545.93,8.493e-05,2]
[422998527,1779732641000,-769.72,8.493e-05,2]
[422998537,1779732641000,-500.0,8.493e-05,2]
[422998496,1779732641000,-500.0,8.493e-05,2]
[422998499,1779732641000,-2402.85,8.493e-05,2]
[422998503,1779732641000,-500.0,8.493e-05,2]
[422998505,1779732641000,-500.0,8.493e-05,2]
[422998497,1779732641000,-500.0,8.493e-05,2]
[422998500,1779732641000,-656.0,8.493e-05,2]
[422998502,1779732641000,-500.0,8.493e-05,2]
[422998506,1779732641000,-500.0,8.493e-05,2]
[422998508,1779732641000,-2518.09,8.493e-05,2]
[422998509,1779732641000,-500.0,8.493e-05,2]
[422998507,1779732641000,-1063.64,8.493e-05,2]
[422998510,1779732641000,-1192.85,8.493e-05,2]
[422998513,1779732641000,-676.81,8.493e-05,2]
[422998501,1779732641000,-743.87,8.493e-05,2]
[422998512,1779732641000,-500.0,8.493e-05,2]
[422998511,1779732641000,-1788.88,8.493e-05,2]
[422998524,1779732641000,-544.08,8.493e-05,2]
[422998522,1779732641000,-500.0,8.493e-05,2]
[422998520,1779732641000,-500.0,8.493e-05,2]
[422998516,1779732641000,-500.0,8.493e-05,2]
[422998518,1779732641000,-561.23,8.493e-05,2]
[422998521,1779732641000,-862.45,8.493e-05,2]
[422998523,1779732641000,-500.0,8.493e-05,2]
[422998517,1779732641000,-1666.34,8.493e-05,2]
[422998519,1779732641000,-500.0,8.493e-05,2]
[422998515,1779732641000,-500.0,8.493e-05,2]
[422998514,1779732641000,-176.57835086,8.493e-05,2]
[422998525,1779732641000,-500.0,8.493e-05,2]
[422998598,1779732642000,-500.0,8.493e-05,2]
[422998595,1779732642000,-500.0,8.493e-05,2]
[422998597,1779732642000,-537.42,8.493e-05,2]
[422998599,1779732642000,-933.05,8.493e-05,2]
[422998596,1779732642000,-1364.75,8.493e-05,2]
[422998593,1779732642000,-500.0,8.493e-05,2]
[422998601,1779732642000,-8629.03,8.493e-05,2]
[422998594,1779732642000,-500.0,8.493e-05,2]
[422998600,1779732642000,-500.0,8.493e-05,2]
[422998591,1779732642000,-500.0,8.493e-05,2]
[422998602,1779732642000,-504.67,8.493e-05,2]
[422998592,1779732642000,-715.24,8.493e-05,2]
[422998604,1779732642000,-500.0,8.493e-05,2]
[422998618,1779732642000,-5893.46,8.493e-05,2]
[422998608,1779732642000,-3176.42,8.493e-05,2]
[422998606,1779732642000,-760.06,8.493e-05,2]
[422998611,1779732642000,-612.18,8.493e-05,2]
[422998613,1779732642000,-500.0,8.493e-05,2]
[422998605,1779732642000,-1177.72,8.493e-05,2]
[422998612,1779732642000,-3044.56,8.493e-05,2]
[422998609,1779732642000,-500.0,8.493e-05,2]
[422998607,1779732642000,-500.0,8.493e-05,2]
[422998614,1779732642000,-3036.69,8.493e-05,2]
[422998610,1779732642000,-2000.69,8.493e-05,2]
[422998619,1779732642000,-500.0,8.493e-05,2]
[422998627,1779732642000,-2752.67,8.493e-05,2]
[422998590,1779732642000,-2211.17,8.493e-05,2]
[422998603,1779732642000,-500.0,8.493e-05,2]
[422998589,1779732642000,-3280.51,8.493e-05,2]
[422998568,1779732642000,-787.66,8.493e-05,2]
[422998585,1779732642000,-481.71338159,8.493e-05,2]
[422998617,1779732642000,-556.16,8.493e-05,2]
[422998560,1779732642000,-2361.28,8.493e-05,2]
[422998562,1779732642000,-5794.63,8.493e-05,2]
[422998558,1779732642000,-500.0,8.493e-05,2]
[422998561,1779732642000,-500.0,8.493e-05,2]
[422998567,1779732642000,-1161.95,8.493e-05,2]
[422998563,1779732642000,-1470.28,8.493e-05,2]
[422998575,1779732642000,-157.93898622,8.493e-05,2]
[422998571,1779732642000,-6186.68,8.493e-05,2]
[422998565,1779732642000,-500.0,8.493e-05,2]
[422998564,1779732642000,-5554.87,8.493e-05,2]
[422998566,1779732642000,-500.0,8.493e-05,2]
[422998572,1779732642000,-500.0,8.493e-05,2]
[422998584,1779732642000,-500.0,8.493e-05,2]
[422998573,1779732642000,-500.0,8.493e-05,2]
[422998569,1779732642000,-1928.73,8.493e-05,2]
[422998570,1779732642000,-500.0,8.493e-05,2]
[422998576,1779732642000,-500.0,8.493e-05,2]
[422998578,1779732642000,-1880.52,8.493e-05,2]
[422998579,1779732642000,-500.0,8.493e-05,2]
[422998587,1779732642000,-500.0,8.493e-05,2]
[422998581,1779732642000,-1272.66,8.493e-05,2]
[422998580,1779732642000,-4101.88,8.493e-05,2]
[422998588,1779732642000,-500.0,8.493e-05,2]
[422998582,1779732642000,-500.0,8.493e-05,2]
[422998586,1779732642000,-499.46134082,8.493e-05,2]
[422998577,1779732642000,-897.33,8.493e-05,2]
[422998583,1779732642000,-500.0,8.493e-05,2]
[422998574,1779732642000,-500.0,8.493e-05,2]
[422998559,1779732642000,-500.0,8.493e-05,2]
[422998616,1779732642000,-2467.37,8.493e-05,2]
[422998615,1779732642000,-500.0,8.493e-05,2]
[422998655,1779732642000,-2397.55,8.493e-05,2]
[422998656,1779732642000,-500.0,8.493e-05,2]
[422998657,1779732642000,-809.89,8.493e-05,2]
[422998658,1779732642000,-500.0,8.493e-05,2]
[422998661,1779732642000,-766.05081597,8.6e-05,2]
[422998660,1779732642000,-500.0,8.493e-05,2]
[422998662,1779732642000,-404.1177186,8.767e-05,2]
[422998659,1779732642000,-1436.91,8.493e-05,2]
[422998664,1779732642000,-876.79,8.767e-05,2]
[422998675,1779732642000,-607.34,8.767e-05,2]
[422998674,1779732642000,-500.0,8.767e-05,2]
[422998663,1779732642000,-3780.6547,8.767e-05,2]
[422998676,1779732642000,-500.0,8.767e-05,2]
[422998653,1779732642000,-44484.35,8.493e-05,2]
[422998666,1779732642000,-500.0,8.767e-05,2]
[422998672,1779732642000,-500.0,8.767e-05,2]
[422998667,1779732642000,-500.0,8.767e-05,2]
[422998673,1779732642000,-500.0,8.767e-05,2]
[422998668,1779732642000,-500.0,8.767e-05,2]
[422998671,1779732642000,-500.0,8.767e-05,2]
[422998669,1779732642000,-756.52,8.767e-05,2]
[422998678,1779732642000,-500.0,8.767e-05,2]
[422998679,1779732642000,-250.5,8.767e-05,2]
[422998677,1779732642000,-500.0,8.767e-05,2]
[422998680,1779732642000,-500.0,8.767e-05,2]
[422998682,1779732642000,-500.0,8.767e-05,2]
[422998681,1779732642000,-500.0,8.767e-05,2]
[422998626,1779732642000,-2982.4,8.493e-05,2]
[422998670,1779732642000,-500.0,8.767e-05,2]
[422998654,1779732642000,-500.0,8.493e-05,2]
[422998665,1779732642000,-1563.38,8.767e-05,2]
[422998651,1779732642000,-500.0,8.493e-05,2]
[422998648,1779732642000,-500.0,8.493e-05,2]
[422998625,1779732642000,-8328.86,8.493e-05,2]
[422998622,1779732642000,-3024.64,8.493e-05,2]
[422998624,1779732642000,-3439.31,8.493e-05,2]
[422998628,1779732642000,-1527.77,8.493e-05,2]
[422998623,1779732642000,-631.23,8.493e-05,2]
[422998620,1779732642000,-500.0,8.493e-05,2]
[422998640,1779732642000,-2932.66,8.493e-05,2]
[422998630,1779732642000,-640.11,8.493e-05,2]
[422998631,1779732642000,-500.0,8.493e-05,2]
[422998634,1779732642000,-500.0,8.493e-05,2]
[422998637,1779732642000,-500.0,8.493e-05,2]
[422998638,1779732642000,-500.0,8.493e-05,2]
[422998633,1779732642000,-500.0,8.493e-05,2]
[422998629,1779732642000,-500.0,8.493e-05,2]
[422998621,1779732642000,-936.09,8.493e-05,2]
[422998647,1779732642000,-766.59,8.493e-05,2]
[422998649,1779732642000,-500.0,8.493e-05,2]
[422998650,1779732642000,-960.18,8.493e-05,2]
[422998652,1779732642000,-3675.82,8.493e-05,2]
[422998636,1779732642000,-2559.81,8.493e-05,2]
[422998645,1779732642000,-500.0,8.493e-05,2]
[422998646,1779732642000,-1359.36,8.493e-05,2]
[422998644,1779732642000,-3468.24,8.493e-05,2]
[422998642,1779732642000,-500.0,8.493e-05,2]
[422998641,1779732642000,-500.0,8.493e-05,2]
[422998639,1779732642000,-1950.61,8.493e-05,2]
[422998632,1779732642000,-5908.59,8.493e-05,2]
[422998635,1779732642000,-2109.64,8.493e-05,2]
[422998643,1779732642000,-595.19,8.493e-05,2]
[422998733,1779732643000,-1788.88,8.767e-05,2]
[422998730,1779732643000,-2518.09,8.767e-05,2]
[422998750,1779732643000,-500.0,8.767e-05,2]
[422998726,1779732643000,-500.0,8.767e-05,2]
[422998724,1779732643000,-579.67101547,8.767e-05,2]
[422998716,1779732643000,-275.05266623,8.767e-05,2]
[422998736,1779732643000,-500.0,8.767e-05,2]
[422998735,1779732643000,-676.81,8.767e-05,2]
[422998725,1779732643000,-500.0,8.767e-05,2]
[422998719,1779732643000,-500.0,8.767e-05,2]
[422998722,1779732643000,-656.0,8.767e-05,2]
[422998731,1779732643000,-500.0,8.767e-05,2]
[422998727,1779732643000,-500.0,8.767e-05,2]
[422998729,1779732643000,-1063.64,8.767e-05,2]
[422998748,1779732643000,-769.72,8.767e-05,2]
[422998728,1779732643000,-500.0,8.767e-05,2]
[422998740,1779732643000,-500.0,8.767e-05,2]
[422998737,1779732643000,-500.0,8.767e-05,2]
[422998739,1779732643000,-561.23,8.767e-05,2]
[422998741,1779732643000,-500.0,8.767e-05,2]
[422998738,1779732643000,-1666.34,8.767e-05,2]
[422998749,1779732643000,-836.7,8.767e-05,2]
[422998742,1779732643000,-862.45,8.767e-05,2]
[422998747,1779732643000,-1143.99,8.767e-05,2]
[422998745,1779732643000,-544.08,8.767e-05,2]
[422998744,1779732643000,-500.0,8.767e-05,2]
[422998746,1779732643000,-500.0,8.767e-05,2]
[422998743,1779732643000,-500.0,8.767e-05,2]
[422998734,1779732643000,-500.0,8.767e-05,2]
[422998713,1779732643000,-864.6,8.767e-05,2]
[422998688,1779732643000,-500.0,8.767e-05,2]
[422998720,1779732643000,-545.93,8.767e-05,2]
[422998690,1779732643000,-500.0,8.767e-05,2]
[422998689,1779732643000,-500.0,8.767e-05,2]
[422998683,1779732643000,-500.0,8.767e-05,2]
[422998684,1779732643000,-500.0,8.767e-05,2]
[422998685,1779732643000,-1020.96,8.767e-05,2]
[422998687,1779732643000,-1158.58,8.767e-05,2]
[422998686,1779732643000,-500.0,8.767e-05,2]
[422998697,1779732643000,-500.0,8.767e-05,2]
[422998695,1779732643000,-629.63,8.767e-05,2]
[422998698,1779732643000,-1109.87,8.767e-05,2]
[422998700,1779732643000,-500.0,8.767e-05,2]
[422998694,1779732643000,-500.0,8.767e-05,2]
[422998704,1779732643000,-500.0,8.767e-05,2]
[422998718,1779732643000,-500.0,8.767e-05,2]
[422998693,1779732643000,-558.55,8.767e-05,2]
[422998691,1779732643000,-500.0,8.767e-05,2]
[422998692,1779732643000,-500.0,8.767e-05,2]
[422998708,1779732643000,-500.05,8.767e-05,2]
[422998702,1779732643000,-795.51,8.767e-05,2]
[422998707,1779732643000,-500.0,8.767e-05,2]
[422998696,1779732643000,-500.0,8.767e-05,2]
[422998712,1779732643000,-1976.72,8.767e-05,2]
[422998721,1779732643000,-2402.85,8.767e-05,2]
[422998714,1779732643000,-500.0,8.767e-05,2]
[422998723,1779732643000,-743.87,8.767e-05,2]
[422998709,1779732643000,-1639.56,8.767e-05,2]
[422998711,1779732643000,-1371.68,8.767e-05,2]
[422998710,1779732643000,-500.0,8.767e-05,2]
[422998706,1779732643000,-1248.63,8.767e-05,2]
[422998753,1779732643000,-2112.19,8.767e-05,2]
[422998732,1779732643000,-1192.85,8.767e-05,2]
[422998756,1779732643000,-520.01,8.767e-05,2]
[422998791,1779732643000,-4101.88,8.767e-05,2]
[422998800,1779732643000,-2211.17,8.767e-05,2]
[422998788,1779732643000,-897.33,8.767e-05,2]
[422998790,1779732643000,-500.0,8.767e-05,2]
[422998798,1779732643000,-500.0,8.767e-05,2]
[422998799,1779732643000,-3280.51,8.767e-05,2]
[422998792,1779732643000,-1272.66,8.767e-05,2]
[422998793,1779732643000,-500.0,8.767e-05,2]
[422998794,1779732643000,-500.0,8.767e-05,2]
[422998797,1779732643000,-500.0,8.767e-05,2]
[422998795,1779732643000,-500.0,8.767e-05,2]
[422998813,1779732643000,-1177.72,8.767e-05,2]
[422998814,1779732643000,-500.0,8.767e-05,2]
[422998810,1779732643000,-8629.03,8.767e-05,2]
[422998811,1779732643000,-504.67,8.767e-05,2]
[422998801,1779732643000,-715.24,8.767e-05,2]
[422998804,1779732643000,-500.0,8.767e-05,2]
[422998808,1779732643000,-933.05,8.767e-05,2]
[422998809,1779732643000,-500.0,8.767e-05,2]
[422998805,1779732643000,-1364.75,8.767e-05,2]
[422998803,1779732643000,-500.0,8.767e-05,2]
[422998812,1779732643000,-500.0,8.767e-05,2]
[422998802,1779732643000,-500.0,8.767e-05,2]
[422998807,1779732643000,-500.0,8.767e-05,2]
[422998816,1779732643000,-500.0,8.767e-05,2]
[422998817,1779732643000,-3176.42,8.767e-05,2]
[422998815,1779732643000,-760.06,8.767e-05,2]
[422998818,1779732643000,-392.07853856,8.767e-05,2]
[422998754,1779732643000,-500.0,8.767e-05,2]
[422998789,1779732643000,-1880.52,8.767e-05,2]
[422998787,1779732643000,-500.0,8.767e-05,2]
[422998806,1779732643000,-537.42,8.767e-05,2]
[422998784,1779732643000,-500.0,8.767e-05,2]
[422998775,1779732643000,-5554.87,8.767e-05,2]
[422998752,1779732643000,-526.15,8.767e-05,2]
[422998755,1779732643000,-500.0,8.767e-05,2]
[422998757,1779732643000,-500.0,8.767e-05,2]
[422998762,1779732643000,-500.0,8.767e-05,2]
[422998769,1779732643000,-500.0,8.767e-05,2]
[422998767,1779732643000,-2463.54,8.767e-05,2]
[422998768,1779732643000,-500.0,8.767e-05,2]
[422998770,1779732643000,-2361.28,8.767e-05,2]
[422998761,1779732643000,-500.0,8.767e-05,2]
[422998758,1779732643000,-500.0,8.767e-05,2]
[422998765,1779732643000,-654.08,8.767e-05,2]
[422998759,1779732643000,-476.3340373,8.767e-05,2]
[422998771,1779732643000,-500.0,8.767e-05,2]
[422998760,1779732643000,-500.0,8.767e-05,2]
[422998751,1779732643000,-552.66,8.767e-05,2]
[422998782,1779732643000,-362.65723935,8.767e-05,2]
[422998764,1779732643000,-500.0,8.767e-05,2]
[422998763,1779732643000,-500.0,8.767e-05,2]
[422998783,1779732643000,-6186.68,8.767e-05,2]
[422998777,1779732643000,-500.0,8.767e-05,2]
[422998779,1779732643000,-787.66,8.767e-05,2]
[422998786,1779732643000,-500.0,8.767e-05,2]
[422998776,1779732643000,-500.0,8.767e-05,2]
[422998774,1779732643000,-1470.28,8.767e-05,2]
[422998766,1779732643000,-500.0,8.767e-05,2]
[422998781,1779732643000,-1928.73,8.767e-05,2]
[422998785,1779732643000,-500.0,8.767e-05,2]
[422998773,1779732643000,-5794.63,8.767e-05,2]
[422998778,1779732643000,-1161.95,8.767e-05,2]
[422998863,1779732644000,-500.0,8.767e-05,2]
[422998865,1779732644000,-44484.35,8.767e-05,2]
[422998851,1779732644000,-1950.61,8.767e-05,2]
[422998866,1779732644000,-500.0,8.767e-05,2]
[422998864,1779732644000,-3675.82,8.767e-05,2]
[422998861,1779732644000,-500.0,8.767e-05,2]
[422998850,1779732644000,-500.0,8.767e-05,2]
[422998869,1779732644000,-809.89,8.767e-05,2]
[422998860,1779732644000,-500.0,8.767e-05,2]
[422998862,1779732644000,-960.18,8.767e-05,2]
[422998859,1779732644000,-766.59,8.767e-05,2]
[422998858,1779732644000,-1359.36,8.767e-05,2]
[422998867,1779732644000,-2397.55,8.767e-05,2]
[422998857,1779732644000,-500.0,8.767e-05,2]
[422998870,1779732644000,-500.0,8.767e-05,2]
[422998882,1779732644000,-1237.75015642,9e-05,2]
[422998881,1779732644000,-173.7577669,8.912e-05,2]
[422998873,1779732644000,-500.0,8.768e-05,2]
[422998880,1779732644000,-1193.58762977,8.9e-05,2]
[422998872,1779732644000,-500.0,8.767e-05,2]
[422998871,1779732644000,-1436.91,8.767e-05,2]
[422998879,1779732644000,-1237.75015642,8.9e-05,2]
[422998875,1779732644000,-160.0,8.881e-05,2]
[422998877,1779732644000,-160.0,8.881e-05,2]
[422998883,1779732644000,-1193.58762977,9e-05,2]
[422998876,1779732644000,-160.0,8.881e-05,2]
[422998878,1779732644000,-160.0,8.881e-05,2]
[422998892,1779732644000,-515.44004021,9.041e-05,2]
[422998887,1779732644000,-500.0,9.041e-05,2]
[422998874,1779732644000,-200.05838224,8.874e-05,2]
[422998849,1779732644000,-500.0,8.767e-05,2]
[422998822,1779732644000,-500.0,8.767e-05,2]
[422998854,1779732644000,-500.0,8.767e-05,2]
[422998889,1779732644000,-500.0,9.041e-05,2]
[422998823,1779732644000,-3036.69,8.767e-05,2]
[422998825,1779732644000,-2467.37,8.767e-05,2]
[422998826,1779732644000,-556.16,8.767e-05,2]
[422998819,1779732644000,-2000.69,8.767e-05,2]
[422998820,1779732644000,-612.18,8.767e-05,2]
[422998824,1779732644000,-500.0,8.767e-05,2]
[422998827,1779732644000,-5893.46,8.767e-05,2]
[422998821,1779732644000,-3044.56,8.767e-05,2]
[422998841,1779732644000,-640.11,8.767e-05,2]
[422998832,1779732644000,-631.23,8.767e-05,2]
[422998834,1779732644000,-8328.86,8.767e-05,2]
[422998833,1779732644000,-3439.31,8.767e-05,2]
[422998835,1779732644000,-2982.4,8.767e-05,2]
[422998853,1779732644000,-500.0,8.767e-05,2]
[422998831,1779732644000,-3024.64,8.767e-05,2]
[422998839,1779732644000,-500.0,8.767e-05,2]
[422998828,1779732644000,-552.61995317,8.767e-05,2]
[422998836,1779732644000,-2752.67,8.767e-05,2]
[422998837,1779732644000,-1527.77,8.767e-05,2]
[422998843,1779732644000,-500.0,8.767e-05,2]
[422998829,1779732644000,-273.1234098,8.767e-05,2]
[422998845,1779732644000,-500.0,8.767e-05,2]
[422998852,1779732644000,-2932.66,8.767e-05,2]
[422998847,1779732644000,-2109.64,8.767e-05,2]
[422998856,1779732644000,-3468.24,8.767e-05,2]
[422998855,1779732644000,-595.19,8.767e-05,2]
[422998846,1779732644000,-500.0,8.767e-05,2]
[422998844,1779732644000,-5908.59,8.767e-05,2]
[422998848,1779732644000,-2559.81,8.767e-05,2]
[422998830,1779732644000,-936.09,8.767e-05,2]
[422998884,1779732644000,-3780.6547,9.041e-05,2]
[422998868,1779732644000,-500.0,8.767e-05,2]
[422998885,1779732644000,-876.79,9.041e-05,2]
[422998933,1779732644000,-2402.85,9.041e-05,2]
[422998934,1779732644000,-656.0,9.041e-05,2]
[422998922,1779732644000,-1248.63,9.041e-05,2]
[422998935,1779732644000,-743.87,9.041e-05,2]
[422998936,1779732644000,-500.0,9.041e-05,2]
[422998924,1779732644000,-1639.56,9.041e-05,2]
[422998926,1779732644000,-1371.68,9.041e-05,2]
[422998929,1779732644000,-500.0,9.041e-05,2]
[422998931,1779732644000,-500.0,9.041e-05,2]
[422998928,1779732644000,-864.6,9.041e-05,2]
[422998925,1779732644000,-500.0,9.041e-05,2]
[422998930,1779732644000,-500.0,9.041e-05,2]
[422998927,1779732644000,-1976.72,9.041e-05,2]
[422998932,1779732644000,-545.93,9.041e-05,2]
[422998923,1779732644000,-500.0,9.041e-05,2]
[422998937,1779732644000,-500.0,9.041e-05,2]
[422998940,1779732644000,-1063.64,9.041e-05,2]
[422998941,1779732644000,-2518.09,9.041e-05,2]
[422998939,1779732644000,-500.0,9.041e-05,2]
[422998948,1779732644000,-500.0,9.041e-05,2]
[422998944,1779732644000,-1788.88,9.041e-05,2]
[422998949,1779732644000,-1666.34,9.041e-05,2]
[422998942,1779732644000,-500.0,9.041e-05,2]
[422998950,1779732644000,-561.23,9.041e-05,2]
[422998943,1779732644000,-1192.85,9.041e-05,2]
[422998946,1779732644000,-676.81,9.041e-05,2]
[422998947,1779732644000,-500.0,9.041e-05,2]
[422998951,1779732644000,-500.0,9.041e-05,2]
[422998953,1779732644000,-862.45,9.041e-05,2]
[422998888,1779732644000,-500.0,9.041e-05,2]
[422998938,1779732644000,-500.0,9.041e-05,2]
[422998919,1779732644000,-500.0,9.041e-05,2]
[422998945,1779732644000,-500.0,9.041e-05,2]
[422998916,1779732644000,-500.0,9.041e-05,2]
[422998915,1779732644000,-629.63,9.041e-05,2]
[422998890,1779732644000,-756.52,9.041e-05,2]
[422998886,1779732644000,-1563.38,9.041e-05,2]
[422998894,1779732644000,-500.0,9.041e-05,2]
[422998893,1779732644000,-500.0,9.041e-05,2]
[422998897,1779732644000,-500.0,9.041e-05,2]
[422998905,1779732644000,-1020.96,9.041e-05,2]
[422998896,1779732644000,-607.34,9.041e-05,2]
[422998907,1779732644000,-1158.58,9.041e-05,2]
[422998906,1779732644000,-500.0,9.041e-05,2]
[422998908,1779732644000,-500.0,9.041e-05,2]
[422998909,1779732644000,-500.0,9.041e-05,2]
[422998898,1779732644000,-500.0,9.041e-05,2]
[422998899,1779732644000,-250.55,9.041e-05,2]
[422998895,1779732644000,-500.0,9.041e-05,2]
[422998900,1779732644000,-500.0,9.041e-05,2]
[422998917,1779732644000,-219.51567831,9.041e-05,2]
[422998903,1779732644000,-500.0,9.041e-05,2]
[422998918,1779732644000,-1109.87,9.041e-05,2]
[422998952,1779732644000,-500.0,9.041e-05,2]
[422998912,1779732644000,-500.0,9.041e-05,2]